bitfinex/quotes_SOLUSD_20240625
["timestamp","ask_amount","ask_price","bid_price","bid_amount"]
[1719312757887,7.2156,138.59,138.53,7.2185]
[1719312758268,100.0,138.6,138.54,32.2176]
[1719312758269,7.215,138.6,138.54,32.2176]
[1719312758471,100.0,138.61,138.54,25.0]
[1719312759390,7.2162,138.58,138.54,25.0]
[1719312759890,7.216,138.58,138.54,25.0]
[1719312760099,7.2167,138.57,138.54,25.0]
[1719312760301,7.2167,138.57,138.51,14.2135]
[1719312760464,100.0,138.59,138.51,6.9943]
[1719312760669,100.0,138.61,138.51,6.9943]
[1719312760886,7.2159,138.59,138.52,25.0]
[1719312761278,7.2159,138.59,138.54,25.0]
[1719312761684,7.2159,138.59,138.51,25.2676]
[1719312761685,7.2168,138.57,138.51,25.2676]
[1719312762068,7.2168,138.57,138.53,25.0]
[1719312762302,7.2168,138.57,138.51,50.2676]
[1719312762484,7.2171,138.56,138.51,50.2676]
[1719312762881,7.2166,138.57,138.51,50.2676]
[1719312763669,100.0,138.59,138.51,50.2676]
[1719312763670,7.2172,138.56,138.51,43.0483]
[1719312763866,7.2172,138.56,138.51,50.2679]
[1719312764190,100.0,138.57,138.52,7.2191]
[1719312764397,107.2162,138.58,138.53,25.0]
[1719312764704,7.2166,138.57,138.53,25.0]
[1719312765076,7.2161,138.58,138.52,7.219]
[1719312765391,100.0,138.6,138.53,25.0]
[1719312765593,17.6381,138.63,138.53,43.046]
[1719312765795,100.0,138.62,138.54,7.218]
[1719312766485,7.215,138.6,138.55,25.0]
[1719312766685,7.215,138.6,138.54,7.218]
[1719312766887,7.2156,138.59,138.53,50.2644]
[1719312767579,7.216,138.58,138.53,50.2644]
[1719312767780,7.2156,138.59,138.53,50.2645]
[1719312767975,7.2161,138.58,138.55,25.0]
[1719312768398,7.2161,138.58,138.53,43.046]
[1719312768985,100.0,138.58,138.51,32.2196]
[1719312769182,7.2166,138.57,138.51,32.2196]
[1719312769475,7.2166,138.57,138.53,25.0]
[1719312769905,7.2158,138.59,138.53,25.0]
[1719312770203,100.0,138.6,138.53,25.0]
[1719312770372,7.2164,138.58,138.53,25.0]
[1719312771388,7.2164,138.58,138.53,32.2186]
[1719312772202,7.2164,138.58,138.53,25.0]
[1719312773577,100.0,138.6,138.53,25.0]
[1719312773784,7.2162,138.58,138.53,25.0]
[1719312774194,7.2162,138.58,138.53,32.2186]
[1719312774401,7.2162,138.58,138.53,25.0]
[1719312775099,7.2162,138.58,138.53,32.2185]
[1719312776382,100.0,138.63,138.56,7.2166]
[1719312776585,100.0,138.63,138.57,25.0]
[1719312776807,7.2145,138.61,138.56,7.217]
[1719312777378,7.2151,138.6,138.55,25.2606]
[1719312777597,7.2151,138.6,138.55,18.0431]
[1719312778309,7.2155,138.59,138.56,25.0]
[1719312778710,7.2151,138.6,138.56,25.0]
[1719312779108,7.2155,138.59,138.54,32.2179]
[1719312779295,7.2155,138.59,138.54,7.2179]
[1719312779506,18.0351,138.62,138.53,7.2184]
[1719312779688,7.2161,138.58,138.53,8.65958228]
[1719312780008,7.2157,138.59,138.54,25.0]
[1719312780396,7.2157,138.59,138.54,32.218]
[1719312781102,7.2157,138.59,138.54,25.0]
[1719312781436,7.2162,138.58,138.54,25.0]
[1719312781595,7.2165,138.57,138.54,25.0]
[1719312782118,7.2162,138.58,138.54,25.0]
[1719312784196,7.153,138.62,138.54,43.0447]
[1719312784513,7.216,138.58,138.54,25.0]
[1719312784891,100.0,138.6,138.54,25.0]
[1719312785105,7.2156,138.59,138.54,25.0]
[1719312785820,7.2156,138.59,138.52,25.0]
[1719312785821,7.2167,138.57,138.52,25.0]
[1719312786114,7.2167,138.57,138.54,25.0]
[1719312786727,7.2161,138.58,138.54,25.0]
[1719312787300,23.5817,138.59,138.54,25.0]
[1719312787501,7.53496712,138.63,138.56,25.0]
[1719312787715,100.0,138.68,138.62,25.0]
[1719312787716,7.561924,138.66,138.62,25.0]
[1719312788098,100.0,138.64,138.58,25.0]
[1719312788410,7.2138,138.63,138.6,25.0]
[1719312788593,7.2129,138.64,138.6,25.0]
[1719312788799,17.0,138.65,138.62,25.0]
[1719312789124,117.0,138.65,138.6,25.0]
[1719312789302,7.213,138.64,138.6,25.0]
[1719312789499,7.2135,138.63,138.58,50.2556]
[1719312790009,7.2135,138.63,138.6,25.0]
[1719312790208,7.2129,138.64,138.6,25.0]
[1719312790609,100.0,138.65,138.6,25.0]
[1719312790796,0.350024,138.66,138.62,25.0]
[1719312791196,7.562224,138.66,138.62,25.0]
[1719312791811,7.562024,138.66,138.62,25.0]
[1719312792194,7.2124,138.65,138.62,25.0]
[1719312792403,7.561924,138.66,138.62,25.0]
[1719312793303,7.2124,138.65,138.62,25.0]
[1719312793701,7.2133,138.64,138.6,25.0]
[1719312794111,7.213,138.64,138.62,25.0]
[1719312794337,107.2125,138.65,138.62,25.0]
[1719312795532,107.2125,138.65,138.59,7.2154]
[1719312795533,0.350024,138.66,138.64,25.0]
[1719312795721,0.350024,138.66,138.65,7.2124]
[1719312797038,0.350024,138.66,138.65,33.5224]
[1719312797373,0.350024,138.66,138.65,33.8624]
[1719312797735,5.0,138.75,138.71,25.0]
[1719312797907,5.0,138.75,138.65,26.65]
[1719312797908,5.0,138.75,138.74,32.2077]
[1719312798229,5.0,138.75,138.74,80.6377]
[1719312798534,0.04290989,138.78,138.77,50.2215]
[1719312798713,0.850024,138.8,138.79,32.2051]
[1719312798914,0.850024,138.8,138.79,49.1599]
[1719312799133,0.850024,138.8,138.79,25.0]
[1719312799436,0.850024,138.94,138.88,7.2004]
[1719312799633,0.850024,138.94,138.9,7.1993]
[1719312799930,8.047624,138.94,138.86,25.2047]
[1719312800134,7.1991,138.91,138.85,25.0]
[1719312800326,0.850024,138.94,138.85,43.0044]
[1719312800634,100.850024,138.94,138.85,43.0044]
[1719312800930,100.850024,138.94,138.85,25.0]
[1719312800931,100.0,138.91,138.85,25.0]
[1719312801130,100.0,138.91,138.83,1.5523]
[1719312801131,100.0,138.9,138.83,25.0]
[1719312801334,100.0,138.9,138.79,17.7981]
[1719312801522,7.2005,138.88,138.81,7.204]
[1719312801838,100.0,138.87,138.79,0.2643]
[1719312802013,7.2021,138.85,138.79,0.2643]
[1719312802212,100.0,138.92,138.8,43.0114]
[1719312802412,7.1999,138.89,138.82,32.203]
[1719312802636,7.1994,138.9,138.84,25.0]
[1719312802934,7.1992,138.91,138.84,41.9351]
[1719312803131,100.0,138.9,138.82,25.0]
[1719312803430,17.9947,138.93,138.82,25.0]
[1719312803431,100.0,138.92,138.82,25.0]
[1719312803737,100.0,138.92,138.81,7.2036]
[1719312803738,100.0,138.9,138.84,25.0]
[1719312804146,7.2015,138.86,138.82,25.0]
[1719312804439,7.2015,138.86,138.8,17.7821]
[1719312804440,7.202,138.85,138.8,25.0]
[1719312804738,7.2025,138.84,138.78,25.0]
[1719312805236,7.203,138.83,138.78,25.0]
[1719312805545,7.2025,138.84,138.78,25.0]
[1719312805727,17.5789,138.93,138.75,42.6163]
[1719312805728,7.1993,138.91,138.83,7.2028]
[1719312805921,17.5789,138.93,138.84,25.0]
[1719312806233,7.1998,138.9,138.84,25.0]
[1719312806446,100.0,138.9,138.84,25.0]
[1719312806637,7.201,138.87,138.84,25.0]
[1719312806812,7.2005,138.88,138.84,25.0]
[1719312807019,117.5789,138.93,138.84,25.0]
[1719312807316,7.1999,138.9,138.84,25.0]
[1719312807539,7.2,138.89,138.84,25.0]
[1719312807938,35.5735,138.93,138.84,32.2022]
[1719312807939,17.5789,138.93,138.84,32.2022]
[1719312808132,17.5789,138.93,138.84,25.0]
[1719312808332,7.1984,138.92,138.85,18.004]
[1719312808523,17.5789,138.93,138.86,25.0]
[1719312808833,7.1988,138.92,138.86,25.0]
[1719312809044,100.0,138.92,138.84,25.0]
[1719312809233,7.2011,138.87,138.84,25.0]
[1719312809416,100.0,138.89,138.84,25.0]
[1719312809618,7.2016,138.86,138.84,25.0]
[1719312809823,7.202,138.85,138.84,25.0]
[1719312810224,7.2028,138.84,138.8,25.0]
[1719312810644,7.2016,138.86,138.8,25.0]
[1719312810825,100.0,138.88,138.8,25.0]
[1719312811238,100.0,138.86,138.8,25.0]
[1719312811546,7.2036,138.82,138.8,25.0]
[1719312812378,100.0,138.86,138.8,25.0]
[1719312812550,118.0057,138.85,138.78,25.0]
[1719312812843,7.2046,138.8,138.76,25.0]
[1719312813035,7.2042,138.81,138.76,25.0]
[1719312813426,100.0,138.83,138.76,25.0]
[1719312813746,7.2042,138.81,138.76,25.0]
[1719312814123,7.2052,138.79,138.76,25.0]
[1719312814321,118.0083,138.83,138.76,25.0]
[1719312814537,7.2042,138.81,138.76,25.0]
[1719312814844,7.2046,138.8,138.76,25.0]
[1719312815041,7.2042,138.81,138.76,25.0]
[1719312815244,100.0,138.81,138.76,25.0]
[1719312815545,7.2057,138.78,138.76,25.0]
[1719312815749,7.2057,138.78,138.72,18.0214]
[1719312815750,7.2057,138.78,138.74,25.0]
[1719312816119,7.2063,138.77,138.74,25.0]
[1719312816323,7.2058,138.78,138.74,25.0]
[1719312816542,118.0043,138.86,138.76,25.0]
[1719312816842,7.2031,138.83,138.77,7.2057]
[1719312817049,100.0,138.85,138.76,25.0]
[1719312817236,7.2045,138.81,138.78,25.0]
[1719312817547,7.2045,138.81,138.76,25.0]
[1719312817748,7.2045,138.81,138.76,32.2066]
[1719312818058,25.5248088,138.89,138.78,24.3174]
[1719312818348,25.5248088,138.89,138.81,25.0]
[1719312818549,7.2013,138.87,138.81,32.204]
[1719312819044,7.2006,138.88,138.83,18.0074]
[1719312819229,7.1994,138.9,138.86,25.0]
[1719312819424,7.1989,138.91,138.86,25.0]
[1719312819728,7.1989,138.91,138.85,7.2019]
[1719312820142,7.1989,138.91,138.86,25.0]
[1719312820345,7.1995,138.9,138.86,25.0]
[1719312820943,7.1995,138.9,138.84,32.202]
[1719312821155,7.1999,138.89,138.86,25.0]
[1719312821330,7.1999,138.89,138.84,25.0]
[1719312821847,7.1999,138.89,138.87,25.0]
[1719312822054,7.2,138.89,138.85,25.0]
[1719312822359,100.0,138.92,138.85,25.0]
[1719312822360,7.2005,138.88,138.85,25.0]
[1719312822857,100.0,138.9,138.85,25.0]
[1719312823045,7.2011,138.87,138.85,25.0]
[1719312823732,7.2,138.89,138.85,25.0]
[1719312823925,7.1995,138.9,138.85,25.0]
[1719312824350,100.850024,138.94,138.85,25.0]
[1719312824548,100.850024,138.94,138.85,26.43806628]
[1719312824747,100.0,138.9,138.85,25.0]
[1719312824953,36.836824,138.94,138.85,25.0]
[1719312824954,100.0,138.89,138.85,25.0]
[1719312825153,7.2011,138.87,138.85,25.0]
[1719312825456,7.2014,138.86,138.85,25.0]
[1719312825636,100.0,138.89,138.83,25.0]
[1719312825637,7.2023,138.85,138.83,25.0]
[1719312826037,7.2023,138.85,138.79,25.2175]
[1719312826038,7.2021,138.85,138.81,25.0]
[1719312826432,100.0,138.89,138.81,25.0]
[1719312826657,7.2018,138.86,138.83,25.0]
[1719312827050,7.2018,138.86,138.81,32.204]
[1719312827382,7.201,138.87,138.83,25.0]
[1719312827540,7.2021,138.85,138.83,25.0]
[1719312827752,7.2021,138.85,138.81,25.0]
[1719312828061,7.2029,138.84,138.81,25.0]
[1719312828940,7.203,138.83,138.81,25.0]
[1719312829141,7.2026,138.84,138.81,25.0]
[1719312829655,7.2034,138.83,138.81,25.0]
[1719312829841,100.0,138.87,138.81,25.0]
[1719312830158,7.2028,138.84,138.81,25.0]
[1719312830336,7.2032,138.83,138.81,25.0]
[1719312832161,7.2035,138.82,138.81,25.0]
[1719312832579,7.2038,138.82,138.78,25.0]
[1719312833668,7.2041,138.81,138.78,25.0]
[1719312835276,7.2046,138.8,138.76,25.0]
[1719312835465,100.0,138.81,138.76,25.0]
[1719312835968,7.2046,138.8,138.76,25.0]
[1719312837052,100.0,138.81,138.76,25.0]
[1719312837273,7.2047,138.8,138.76,25.0]
[1719312837941,7.2051,138.79,138.76,25.0]
[1719312839777,7.2051,138.79,138.75,18.0172]
[1719312840081,107.2045,138.81,138.75,18.0172]
[1719312840372,106.7329,138.83,138.75,25.2242]
[1719312840680,100.0,138.81,138.75,18.0172]
[1719312840872,100.0,138.81,138.76,25.0]
[1719312841052,107.2042,138.81,138.76,25.0]
[1719312841476,7.2046,138.8,138.76,25.0]
[1719312841784,100.0,138.81,138.76,32.2066]
[1719312841955,100.0,138.81,138.78,25.0]
[1719312842356,107.2041,138.81,138.76,25.0]
[1719312842769,107.2041,138.81,138.76,25.71804415]
[1719312843070,7.2041,138.81,138.77,0.7179924]
[1719312843373,7.2041,138.81,138.78,25.0]
[1719312843975,7.2046,138.8,138.78,25.0]
[1719312844654,107.2042,138.81,138.78,25.0]
[1719312844855,107.2042,138.81,138.76,25.71827516]
[1719312845057,7.2047,138.8,138.76,25.71827516]
[1719312845881,7.2052,138.79,138.74,25.0]
[1719312846651,7.2052,138.79,138.74,32.2076]
[1719312848247,100.0,138.76,138.74,25.0]
[1719312848686,7.2072,138.75,138.74,25.0]
[1719312850175,7.206,138.78,138.74,25.0]
[1719312850374,7.2052,138.79,138.76,25.0]
[1719312850580,7.2057,138.78,138.74,25.0]
[1719312850957,100.0,138.78,138.74,25.0]
[1719312851482,7.2068,138.76,138.74,25.0]
[1719312851860,7.2062,138.77,138.74,25.0]
[1719312852061,107.2058,138.78,138.74,25.0]
[1719312852366,7.207,138.76,138.74,25.0]
[1719312853356,7.2072,138.75,138.74,25.0]
[1719312855172,7.2072,138.75,138.72,25.0]
[1719312855761,7.2067,138.76,138.72,25.0]
[1719312856084,7.2072,138.75,138.74,25.0]
[1719312857085,7.2072,138.75,138.72,25.0]
[1719312857294,100.0,138.74,138.7,25.0]
[1719312857460,100.0,138.72,138.68,25.0]
[1719312857664,7.2101,138.7,138.68,25.0]
[1719312857884,7.2094,138.71,138.68,25.0]
[1719312858088,7.2099,138.7,138.68,25.0]
[1719312858863,20.0,138.69,138.68,25.0]
[1719312859464,20.0,138.69,138.64,55.6062]
[1719312859465,27.2104,138.69,138.64,55.6062]
[1719312859665,7.2109,138.68,138.64,41.5079]
[1719312859874,27.2104,138.69,138.64,41.5079]
[1719312860365,27.2104,138.69,138.66,25.0]
[1719312860577,7.2094,138.71,138.68,25.0]
[1719312860964,100.0,138.72,138.65,18.0307]
[1719312861281,7.2093,138.71,138.68,25.0]
[1719312861583,7.2098,138.7,138.66,25.0]
[1719312861772,7.2094,138.71,138.66,25.0]
[1719312861964,7.2094,138.71,138.68,25.0]
[1719312862364,7.2088,138.72,138.68,25.0]
[1719312862585,107.2088,138.72,138.7,25.0]
[1719312862784,7.2092,138.71,138.68,25.0]
[1719312862989,7.2098,138.7,138.68,25.0]
[1719312863862,7.2103,138.69,138.68,25.0]
[1719312864585,7.2094,138.71,138.68,25.0]
[1719312865886,7.2098,138.7,138.68,25.0]
[1719312866481,7.2094,138.71,138.68,25.0]
[1719312866892,24.4972,138.74,138.7,25.0]
[1719312867080,7.2079,138.74,138.7,25.0]
[1719312867475,117.7329,138.77,138.71,25.0]
[1719312867784,117.7329,138.77,138.7,18.0241]
[1719312867980,7.2088,138.72,138.69,25.0]
[1719312868589,7.2083,138.73,138.71,25.0]
[1719312868883,7.2092,138.71,138.69,25.0]
[1719312869075,18.017,138.76,138.71,25.0]
[1719312869076,7.2089,138.72,138.71,25.0]
[1719312873068,7.2089,138.72,138.69,25.0]
[1719312873772,7.2083,138.73,138.71,25.0]
[1719312873971,7.2083,138.73,138.69,25.0]
[1719312874182,100.0,138.75,138.69,25.0]
[1719312874388,7.2082,138.73,138.71,25.0]
[1719312874975,100.0,138.82,138.78,25.0]
[1719312875169,100.0,138.84,138.78,25.0]
[1719312875374,7.2031,138.83,138.81,25.0]
[1719312875575,7.2032,138.83,138.81,25.0]
[1719312875789,100.0,138.82,138.79,25.0]
[1719312875992,107.2039,138.82,138.79,25.0]
[1719312876175,7.2046,138.8,138.79,25.0]
[1719312876376,7.2042,138.81,138.79,25.0]
[1719312877288,100.0,138.82,138.79,25.0]
[1719312877470,7.2042,138.81,138.79,25.0]
[1719312877885,100.0,138.82,138.79,25.0]
[1719312878076,7.2042,138.81,138.79,25.0]
[1719312879086,100.0,138.82,138.79,25.0]
[1719312879307,7.2046,138.8,138.79,25.0]
[1719312879482,7.2042,138.81,138.79,25.0]
[1719312880372,7.2046,138.8,138.79,25.0]
[1719312880576,7.2041,138.81,138.79,25.0]
[1719312880892,100.0,138.82,138.73,25.0]
[1719312880893,100.0,138.77,138.73,25.0]
[1719312881191,100.0,138.77,138.68,24.809]
[1719312881192,107.2061,138.77,138.76,25.0]
[1719312881402,7.2073,138.75,138.73,25.0]
[1719312881590,7.2077,138.74,138.73,25.0]
[1719312881890,7.2073,138.75,138.73,25.0]
[1719312882506,7.2067,138.76,138.73,25.0]
[1719312882792,7.2067,138.76,138.75,25.0]
[1719312885209,100.0,138.77,138.68,49.809]
[1719312885210,7.2077,138.74,138.73,25.0]
[1719312886191,7.2056,138.78,138.77,25.0]
[1719312886592,23.3642,138.79,138.77,25.0]
[1719312886786,16.159,138.79,138.77,25.0]
[1719312886985,7.2056,138.78,138.77,25.0]
[1719312887881,118.0111,138.81,138.8,25.0]
[1719312887882,100.0,138.81,138.8,25.0]
[1719312888109,14.34447983,138.84,138.82,25.0]
[1719312888295,7.203,138.83,138.82,25.0]
[1719312889513,107.203,138.83,138.82,25.0]
[1719312891017,7.204,138.81,138.8,25.0]
[1719312894332,107.2051,138.79,138.78,25.0]
[1719312896211,107.2061,138.77,138.76,25.0]
[1719312896415,7.2072,138.75,138.74,25.0]
[1719312896613,107.2072,138.75,138.74,25.0]
[1719312896915,7.2072,138.75,138.74,25.0]
[1719312898306,107.2064,138.77,138.76,25.0]
[1719312898804,107.2061,138.77,138.76,25.0]
[1719312898997,100.0,138.73,138.7,25.0]
[1719312899193,7.2089,138.72,138.7,25.0]
[1719312899621,18.0175,138.76,138.72,25.0]
[1719312899622,107.2084,138.73,138.72,25.0]
[1719312900505,7.2077,138.75,138.74,25.0]
[1719312900910,107.2067,138.76,138.74,25.0]
[1719312901116,7.2072,138.75,138.74,25.0]
[1719312901401,17.31,138.79,138.78,25.0]
[1719312901619,24.5151,138.79,138.78,25.0]
[1719312901803,107.2051,138.79,138.78,25.0]
[1719312902818,7.2061,138.77,138.76,25.0]
[1719312903320,107.2061,138.77,138.76,25.0]
[1719312904525,107.2072,138.75,138.74,25.0]
[1719312904727,7.2072,138.75,138.74,25.0]
[1719312904933,107.2072,138.75,138.74,25.0]
[1719312905231,7.2068,138.76,138.74,25.0]
[1719312905521,107.2056,138.78,138.77,25.0]
[1719312905896,7.205,138.8,138.77,25.0]
[1719312906099,100.0,138.82,138.81,25.0]
[1719312906315,107.2035,138.82,138.81,25.0]
[1719312907246,7.2035,138.82,138.81,25.0]
[1719312908541,7.2032,138.83,138.81,25.0]
[1719312908743,7.2035,138.82,138.81,25.0]
[1719312910829,107.2035,138.82,138.81,25.0]
[1719312911237,7.2035,138.82,138.81,25.0]
[1719312913443,100.0,138.86,138.81,25.0]
[1719312913644,24.9579,138.88,138.87,25.0]
[1719312914130,7.2004,138.88,138.87,25.0]
[1719312914333,100.0,138.89,138.87,25.0]
[1719312914647,100.0,138.91,138.87,25.0]
[1719312914855,107.1994,138.91,138.9,25.0]
[1719312915534,7.1994,138.91,138.9,25.0]
[1719312915733,107.1994,138.91,138.9,25.0]
[1719312916924,14.73096341,138.93,138.92,25.0]
[1719312917122,114.73096341,138.93,138.92,25.0]
[1719312917319,107.1983,138.93,138.92,25.0]
[1719312917553,7.1983,138.93,138.92,25.0]
[1719312918251,8.047324,138.94,138.92,25.0]
[1719312919956,7.1978,138.93,138.92,25.0]
[1719312920244,0.850024,138.94,138.92,25.0]
[1719312921827,283.7345,139.01,138.89,17.9989]
[1719312921828,0.850024,139.07,139.06,32.1911]
[1719312922029,0.850024,139.07,139.06,76.3889]
[1719312922254,0.850024,139.07,139.06,50.1689]
[1719312922434,0.850024,139.07,139.06,76.7289]
[1719312922847,7.22718287,139.19,139.17,25.0]
[1719312922848,0.04278287,139.19,139.17,25.0]
[1719312923230,100.0,139.18,139.15,25.0]
[1719312923439,0.04278287,139.19,139.15,25.0]
[1719312923741,0.04278287,139.19,139.18,25.0]
[1719312924525,0.04278287,139.19,139.18,32.1849]
[1719312924830,0.04278287,139.19,139.18,25.0]
[1719312925257,0.04278287,139.19,139.18,26.43537543]
[1719312925637,0.04278287,139.19,139.18,25.0]
[1719312925857,0.04278287,139.19,139.18,42.9623]
[1719312926035,0.04278287,139.19,139.18,25.0]
[1719312926234,7.22718287,139.19,139.18,25.0]
[1719312926949,7.1854,139.17,139.16,25.0]
[1719312928628,7.1864,139.15,139.14,25.0]
[1719312928835,7.1864,139.15,139.06,17.9766]
[1719312928836,7.1854,139.18,139.16,25.0]
[1719312929331,7.1854,139.17,139.16,25.0]
[1719312929731,7.1849,139.18,139.16,25.0]
[1719312930151,0.04278287,139.19,139.16,25.0]
[1719312930364,0.04278287,139.19,139.18,25.0]
[1719312931251,7.22718287,139.19,139.18,25.0]
[1719312931432,100.0,139.18,139.14,25.0]
[1719312931635,7.1864,139.15,139.14,25.0]
[1719312932053,118.00478287,139.19,139.14,25.0]
[1719312932354,7.1864,139.15,139.14,25.0]
[1719312932533,18.00478287,139.19,139.14,25.0]
[1719312933051,100.0,139.1,139.03,28.808145]
[1719312933366,6.9171,139.15,139.03,28.808145]
[1719312933367,7.1914,139.06,139.03,25.0]
[1719312933535,100.0,139.12,139.06,25.0]
[1719312933741,100.0,139.12,138.97,6.5094]
[1719312933742,7.1895,139.09,139.08,25.0]
[1719312934042,7.1891,139.1,139.08,25.0]
[1719312934640,7.1895,139.09,139.08,25.0]
[1719312934840,100.0,139.1,139.04,25.0]
[1719312935038,100.0,139.14,139.04,25.0]
[1719312935241,7.1901,139.08,139.07,25.0]
[1719312935565,6.9171,139.15,139.11,25.0]
[1719312935753,7.188,139.12,139.11,25.0]
[1719312936257,7.1875,139.14,139.13,25.0]
[1719312936436,15.91852889,139.17,139.13,25.0]
[1719312936639,100.0,139.16,139.13,25.0]
[1719312937366,7.52136847,139.18,139.16,25.0]
[1719312937668,7.1854,139.17,139.16,25.0]
[1719312937841,7.1854,139.17,139.07,7.1903]
[1719312937842,7.1875,139.13,139.12,25.0]
[1719312939837,7.1869,139.15,139.12,25.0]
[1719312940146,7.1869,139.15,139.06,7.0037]
[1719312940147,7.1869,139.15,139.14,25.0]
[1719312941371,7.1869,139.15,139.12,25.0]
[1719312941552,125.48426847,139.18,139.12,25.0]
[1719312941750,7.1875,139.13,139.12,25.0]
[1719312941955,7.1871,139.14,139.12,25.0]
[1719312942161,7.1875,139.13,139.12,25.0]
[1719312942846,7.1871,139.14,139.12,25.0]
[1719312943770,7.1864,139.15,139.14,25.0]
[1719312943972,107.1864,139.15,139.14,25.0]
[1719312944286,7.1864,139.15,139.14,25.0]
[1719312945346,0.04278287,139.19,139.17,25.0]
[1719312945547,107.1849,139.18,139.17,25.0]
[1719312945745,7.1864,139.15,139.14,25.0]
[1719312946771,25.1563,139.13,139.12,125.0]
[1719312946948,7.1875,139.13,139.12,125.0]
[1719312948667,7.1863,139.16,139.14,25.0]
[1719312949579,8.81e-06,139.19,139.18,25.0]
[1719312949883,6.8667,139.42,139.2,71.8236]
[1719312949884,2.4e-05,139.21,139.2,71.8236]
[1719312950054,2.4e-05,139.21,139.2,72.1636]
[1719312950372,2.4e-05,139.21,139.2,97.1636]
[1719312950574,7.1767,139.34,139.32,25.0]
[1719312950770,100.0,139.37,139.3,25.0]
[1719312950771,7.1772,139.33,139.3,25.0]
[1719312951283,100.0,139.37,139.3,25.0]
[1719312951458,7.1772,139.33,139.32,25.0]
[1719312951968,7.1777,139.32,139.3,25.0]
[1719312952162,7.1782,139.31,139.3,25.0]
[1719312952551,17.9402,139.36,139.3,25.0]
[1719312952766,100.0,139.32,139.25,1.43218857]
[1719312952977,100.0,139.32,139.24,1.43218857]
[1719312952978,7.1797,139.28,139.24,1.43218857]
[1719312953154,100.0,139.32,139.24,1.43218857]
[1719312953354,7.1802,139.28,139.24,1.43218857]
[1719312953553,100.0,139.32,139.24,1.43218857]
[1719312953756,117.9436,139.33,139.24,1.43218857]
[1719312953961,7.1807,139.27,139.25,25.0]
[1719312954169,7.1798,139.28,139.26,1.43598752]
[1719312954476,100.0,139.32,139.26,1.43598752]
[1719312954776,7.1805,139.27,139.23,25.0]
[1719312955083,7.1805,139.27,139.25,25.0]
[1719312955466,7.1798,139.28,139.26,1.43553656]
[1719312955656,7.1808,139.26,139.25,25.0]
[1719312958763,7.1804,139.27,139.25,25.0]
[1719312958977,17.9468,139.31,139.25,25.0]
[1719312958978,7.1808,139.26,139.25,25.0]
[1719312959181,7.1804,139.27,139.25,25.0]
[1719312959560,7.1808,139.26,139.25,25.0]
[1719312961659,100.0,139.25,139.19,25.0]